[Event "WYCC 2018 O18"]
[Site "Halkidiki"]
[Date "2018.10.29"]
[Round "10"]
[White "Kandil, Adham"]
[Black "Miciano, John Marvin"]
[Result "1/2-1/2"]
[ECO "B13"]
[WhiteElo "2292"]
[BlackElo "2361"]
[Annotator "NA"]
[PlyCount "103"]
[EventDate "2018.10.20"]
[EventType "swiss"]
[EventCountry "GRE"]
[SourceTitle "playchess.com"]
[Source "ChessBase"]
[SourceQuality "1"]
[TimeControl "40/5400+30:1800+30"]

1. e4 {[%emt 0:00:00]} c6 {[%emt 0:00:00]} 2. d4 {[%emt 0:00:00]} d5 {[%emt 0:00:00]} 3. exd5 {[%emt 0:00:00]} cxd5 {[%emt 0:00:03]} 4. c4 {[%emt 0:00:15]} Nf6 {[%emt 0:00:08]} 5. Nc3 {[%emt 0:00:19]} Nc6 {[%emt 0:00:11]} 6. Bg5 {[%emt 0:00:11]} Ne4 {[%emt 0:02:38]} 7. Nxe4 {[%emt 0:02:55] B13: Caro-Kann: Exchange Variation and Panov-Botvinnik Attack} dxe4 {[%emt 0:00:08]} 8. d5 {[%emt 0:01:34]} Ne5 {[%emt 0:00:07]} 9. Qd4 {[%emt 0:03:09]} f6 {[%emt 0:00:07]} 10. Bf4 {[%emt 0:01:44]} Ng4 {[%emt 0:00:08]} 11. Bd2 {[%emt 0:06:02]} e5 {[%emt 0:01:40]} 12. Qxe4 {[%emt 0:02:06]} Qb6 {[%emt 0:02:03]} 13. Nh3 {[%emt 0:01:04]} Bc5 {[%emt 0:01:58]} 14. O-O-O {[%emt 0:06:28] [#]} O-O $146 {[%emt 0:01:57]} ({Predecessor:} 14... Bxf2) 15. Be2 {[%emt 0:05:52]} Nxf2 {[%emt 0:05:58]} 16. Nxf2 {[%emt 0:00:07]} Bxf2 {[%emt 0:00:08]} 17. Bc3 {[%emt 0:01:47]} Bd7 {[%emt 0:00:40]} 18. Bd3 {[%emt 0:02:49]} g6 {[%emt 0:00:35]} 19. Kb1 {[%emt 0:01:39]} Rae8 {[%emt 0:01:39]} 20. Qe2 {[%emt 0:02:05]} Bd4 {[%emt 0:05:12]} 21. Bxd4 {[%emt 0:00:30]} exd4 {[%emt 0:00:13]} 22. Qc2 {[%emt 0:00:14]} Kg7 {[%emt 0:02:14]} (22... Qc5 $11) 23. c5 {[%emt 0:03:57]} Qa5 {[%emt 0:06:52]} 24. Qc4 {[%emt 0:01:33]} Bg4 {[%emt 0:07:55]} 25. Rc1 {[%emt 0:02:33]} Re3 {[%emt 0:02:08] [#]} 26. Qxd4 $2 {[%emt 0:00:32]} (26. h3 $1 $16 {[%cal Rh3g4]} Bd7 27. Rhd1 (27. Qxd4 $2 Rxd3 28. Qxd3 Bf5 $19)) 26... Rxd3 {[%emt 0:00:08]} 27. Qxg4 {[%emt 0:00:03]} (27. Qxd3 $2 {is the wrong capture.} Bf5 $19) 27... Rxd5 {[%emt 0:00:06]} 28. Qc4 {[%emt 0:08:41]} Re5 {[%emt 0:03:32]} 29. Rhd1 {[%emt 0:01:56]} Rf7 {[%emt 0:01:20]} 30. Rd6 {[%emt 0:04:03]} Qc7 {[%emt 0:00:50]} 31. Qd4 {[%emt 0:00:44]} Qe7 {[%emt 0:00:55]} 32. a3 {[%emt 0:00:19]} Re4 {[%emt 0:03:19]} 33. Qd5 {[%emt 0:00:24]} Qe5 {[%emt 0:05:00]} 34. g3 {[%emt 0:01:16]} h5 {[%emt 0:01:50]} 35. Rc2 {[%emt 0:04:09]} Qxd5 {[%emt 0:00:36]} 36. Rxd5 {[%emt 0:00:04]} h4 {[%emt 0:00:08]} 37. Rd3 {[%emt 0:00:59]} f5 {[%emt 0:01:30]} 38. b4 {[%emt 0:00:52]} h3 {[%emt 0:08:05]} 39. b5 {[%emt 0:02:52]} Kh6 {[%emt 0:00:58]} 40. Kc1 $11 {[%emt 0:00:00]} Kh5 {[%emt 0:00:00]} 41. c6 {[%emt 0:03:36]} bxc6 {[%emt 0:03:36]} 42. bxc6 {[%emt 0:00:03]} Ree7 {[%emt 0:00:08]} 43. Rd8 {[%emt 0:00:24]} g5 {[%emt 0:00:56]} 44. Rc8 {[%emt 0:02:22]} Kg4 {[%emt 0:01:33]} 45. Rc3 {[%emt 0:00:38]} Re1+ {[%emt 0:26:41]} 46. Kd2 {[%emt 0:03:38]} Rh1 {[%emt 0:00:43]} 47. Rc4+ {[%emt 0:00:04]} Kf3 {[%emt 0:00:23]} 48. Rc3+ {[%emt 0:00:06]} Kg4 {[%emt 0:02:38]} 49. Rc4+ {[%emt 0:00:19]} Kf3 {[%emt 0:13:39]} 50. Rc3+ {[%emt 0:00:22]} Kg4 {[%emt 0:06:41]} 51. Rc4+ {[%emt 0:00:25]} Kf3 {[%emt 0:01:43]} 52. Rc3+ {[%emt 0:00:47]} 1/2-1/2

[Event "WYCC 2018 O18"]
[Site "Halkidiki"]
[Date "2018.10.29"]
[Round "10"]
[White "Le, Minh Hoang"]
[Black "Rovira Vila, Jaume"]
[Result "1-0"]
[ECO "A04"]
[WhiteElo "2271"]
[BlackElo "2156"]
[Annotator "NA"]
[PlyCount "33"]
[EventDate "2018.10.20"]
[EventType "swiss"]
[EventCountry "GRE"]
[SourceTitle "playchess.com"]
[Source "ChessBase"]
[SourceQuality "1"]
[TimeControl "40/5400+30:1800+30"]

1. Nf3 {[%emt 0:00:00]} c5 {[%emt 0:00:00]} 2. c4 {[%emt 0:01:03]} Nc6 {[%emt 0:00:00]} 3. Nc3 {[%emt 0:00:06]} g6 {[%emt 0:00:14]} 4. e3 {[%emt 0:00:16]} Nf6 {[%emt 0:04:07]} 5. d4 {[%emt 0:00:08]} cxd4 {[%emt 0:00:16]} 6. exd4 {[%emt 0:00:08]} d5 {[%emt 0:00:53]} 7. Bg5 {[%emt 0:13:03] LiveBook: 153 Games} Ne4 {[%emt 0:00:42]} 8. cxd5 {[%emt 0:06:39]} Nxc3 {[%emt 0:01:58]} 9. bxc3 {[%emt 0:00:08]} Qxd5 {[%emt 0:01:01]} 10. Qb3 {[%emt 0:00:10]} Qe4+ {[%emt 0:10:32] A35: Symmetrical English: 2 Nc3 Nc6 3 Nf3} (10... Qxb3 11. axb3 Bg7 12. Bb5 Bd7 13. O-O e6 14. Nd2 f6 15. Bf4 Ne7 16. Bxd7+ Kxd7 17. Ne4 b6 18. Ra6 f5 19. Ng5 Nd5 20. Bd2 {1-0 (43) Slipak,S (2436)-Alonso,S (2501) Buenos Aires 2015}) 11. Be3 {[%emt 0:00:05]} Bg7 {[%emt 0:17:47]} 12. Qxf7+ {[%emt 0:00:28]} Kxf7 {[%emt 0:00:10]} 13. Ng5+ {[%emt 0:00:03]} Ke8 {[%emt 0:00:49]} 14. Nxe4 {[%emt 0:00:04]} e5 $146 {[%emt 0:00:59]} (14... Bf5 $16) ({Predecessor:} 14... Bd7 15. h4 b6 16. h5 {1-0 (16) Contin,D (2321)-Celestino,G (2141) Mar del Plata 2009}) 15. d5 {[%emt 0:01:53]} Ne7 {[%emt 0:00:33]} 16. Bb5+ {[%emt 0:00:33]} Kf8 {[%emt 0:04:30]} 17. Bc5 $18 {[%emt 0:03:25] Ke8} 1-0

[Event "WYCC 2018 O18"]
[Site "Halkidiki"]
[Date "2018.10.29"]
[Round "10"]
[White "Beukema, Jasper"]
[Black "Ranaldi, Lucas"]
[Result "1-0"]
[ECO "E19"]
[WhiteElo "2256"]
[BlackElo "2335"]
[Annotator "NA"]
[PlyCount "117"]
[EventDate "2018.10.20"]
[EventType "swiss"]
[EventCountry "GRE"]
[SourceTitle "playchess.com"]
[Source "ChessBase"]
[SourceQuality "1"]
[TimeControl "40/5400+30:1800+30"]

1. d4 {[%emt 0:00:00]} Nf6 {[%emt 0:00:00]} 2. c4 {[%emt 0:00:00]} e6 {[%emt 0:00:00]} 3. Nf3 {[%emt 0:00:33]} b6 {[%emt 0:00:06]} 4. g3 {[%emt 0:00:31]} Bb7 {[%emt 0:00:16]} 5. Bg2 {[%emt 0:00:12]} Be7 {[%emt 0:00:05]} 6. O-O {[%emt 0:00:14]} O-O {[%emt 0:00:05]} 7. Nc3 {[%emt 0:00:19]} Ne4 {[%emt 0:00:06]} 8. Qc2 {[%emt 0:01:39]} Nxc3 {[%emt 0:02:54]} 9. Qxc3 {[%emt 0:04:42]} f5 {[%emt 0:00:20]} 10. b4 {[%emt 0:15:09]} Bf6 {[%emt 0:21:33] E19: Queen's Indian: Old Main Line with 7...Ne4 8 Qc2 Nxc3 8 Qxc3} (10... a5 11. b5 Bf6 12. Qe3 Qe7 13. Ba3 d6 14. Rac1 Nd7 15. c5 bxc5 16. dxc5 Bd5 17. cxd6 cxd6 18. Rc7 {1-0 (69) Ivanov,M (2489)-Olivier,J (2358) Chambery 2008}) 11. c5 {[%emt 0:04:52]} Bd5 $146 {[%emt 0:09:59]} ({Predecessor:} 11... Qc8 12. Bf4 Nc6 13. cxb6 cxb6 14. Qd2 Nxd4 15. Rac1 Qe8 16. Nxd4 Bxg2 17. Kxg2 e5 18. Nxf5 exf4 {1-0 (34) Heinlein,R (2171)-Dallmann,V Baunatal 2000}) 12. Bf4 {[%emt 0:19:40]} bxc5 {[%emt 0:15:15]} 13. Qxc5 {[%emt 0:02:37]} d6 {[%emt 0:01:19]} 14. Qc3 {[%emt 0:06:03]} a5 {[%emt 0:04:15]} 15. b5 {[%emt 0:02:17]} c5 {[%emt 0:02:04]} 16. Rac1 {[%emt 0:07:59]} Kh8 {[%emt 0:18:20]} 17. Qa3 {[%emt 0:03:39]} g5 {[%emt 0:01:12]} 18. Bxd6 {[%emt 0:10:56]} Qxd6 {[%emt 0:00:25]} 19. dxc5 {[%emt 0:00:15]} Qe7 {[%emt 0:00:45]} 20. Qe3 {[%emt 0:01:47]} f4 {[%emt 0:07:17]} 21. Qd2 {[%emt 0:00:59]} Nd7 {[%emt 0:03:17]} 22. c6 {[%emt 0:01:17]} Nb6 {[%emt 0:01:01]} 23. Rfd1 {[%emt 0:03:05]} e5 {[%emt 0:07:57]} 24. Qc2 {[%emt 0:02:06]} e4 {[%emt 0:00:28]} 25. Nd4 {[%emt 0:03:05]} e3 {[%emt 0:00:36]} 26. f3 {[%emt 0:00:21]} fxg3 {[%emt 0:02:03]} 27. Nf5 {[%emt 0:05:18]} gxh2+ {[%emt 0:00:17]} 28. Kh1 {[%emt 0:00:04]} Qe5 {[%emt 0:00:37]} 29. Qc5 {[%emt 0:00:20]} Qxf5 {[%emt 0:00:37]} 30. Qxb6 {[%emt 0:00:08]} g4 {[%emt 0:01:14]} 31. Qc5 {[%emt 0:00:05]} gxf3 {[%emt 0:00:07]} 32. exf3 {[%emt 0:00:26]} Be6 {[%emt 0:00:53]} 33. Qxe3 {[%emt 0:02:22]} Rg8 {[%emt 0:00:01]} 34. Qe4 {[%emt 0:02:56]} Qg5 {[%emt 0:01:00]} 35. f4 {[%emt 0:00:06]} Qg4 {[%emt 0:00:23]} 36. f5 {[%emt 0:00:17]} Bxf5 {[%emt 0:00:32]} 37. Qxg4 {[%emt 0:00:12]} Rxg4 {[%emt 0:00:30]} 38. c7 {[%emt 0:01:43]} Rag8 {[%emt 0:00:11]} 39. Bd5 {[%emt 0:00:23]} Bd4 {[%emt 0:00:59]} 40. Bxg8 {[%emt 0:00:00]} Be4+ {[%emt 0:00:00]} 41. Kxh2 {[%emt 0:00:57]} Be5+ {[%emt 0:03:46]} 42. Kh3 {[%emt 0:00:08]} Rxg8 {[%emt 0:11:04]} 43. Rg1 {[%emt 0:09:14]} Bf5+ {[%emt 0:00:56]} 44. Kh4 {[%emt 0:00:05]} Rxg1 {[%emt 0:03:14]} 45. Rxg1 {[%emt 0:00:01]} Bxc7 {[%emt 0:00:15]} 46. Kg5 {[%emt 0:02:06]} Bd3 {[%emt 0:05:35]} 47. a4 {[%emt 0:00:33]} Kg7 {[%emt 0:01:08]} 48. Rc1 {[%emt 0:02:19]} h6+ {[%emt 0:01:44]} 49. Kg4 {[%emt 0:00:09]} Be2+ {[%emt 0:02:05]} 50. Kf5 {[%emt 0:00:18]} Bd3+ {[%emt 0:00:46]} 51. Ke6 {[%emt 0:00:19]} Bf4 {[%emt 0:00:33]} 52. Rc3 {[%emt 0:00:37]} Be2 {[%emt 0:01:42]} 53. Kf5 {[%emt 0:00:33]} Bh2 {[%emt 0:01:00]} 54. b6 {[%emt 0:00:58]} h5 {[%emt 0:00:57]} 55. b7 {[%emt 0:01:59]} Bg4+ {[%emt 0:02:28]} 56. Kg5 {[%emt 0:01:16]} Bd1 {[%emt 0:00:15]} 57. Rc5 {[%emt 0:03:46]} Bxa4 {[%emt 0:00:48] [#]} 58. Rc4 {[%emt 0:00:06]} Bd1 {[%emt 0:00:44]} 59. Rf4 {[%emt 0:00:09]} 1-0

[Event "WYCC 2018 O18"]
[Site "Halkidiki"]
[Date "2018.10.29"]
[Round "10"]
[White "Liska, Jiri"]
[Black "Martinez Fernandez, Adrian"]
[Result "1-0"]
[ECO "D23"]
[WhiteElo "2245"]
[BlackElo "2277"]
[Annotator "NA"]
[PlyCount "139"]
[EventDate "2018.10.20"]
[EventType "swiss"]
[EventCountry "GRE"]
[SourceTitle "playchess.com"]
[Source "ChessBase"]
[SourceQuality "1"]
[TimeControl "40/5400+30:1800+30"]

1. d4 {[%emt 0:00:00]} d5 {[%emt 0:00:20]} 2. Nf3 {[%emt 0:00:00]} Nf6 {[%emt 0:00:06]} 3. c4 {[%emt 0:00:03]} dxc4 {[%emt 0:00:04]} 4. Qa4+ {[%emt 0:00:37]} Nc6 {[%emt 0:02:18]} 5. e3 {[%emt 0:02:28]} Nd7 {[%emt 0:16:03]} 6. Bxc4 {[%emt 0:17:08]} Nb6 {[%emt 0:01:25]} 7. Qb3 {[%emt 0:00:35]} Nxc4 {[%emt 0:00:11]} 8. Qxc4 {[%emt 0:00:02]} e6 {[%emt 0:05:22]} 9. O-O {[%emt 0:00:58]} Bd6 {[%emt 0:06:06]} 10. e4 {[%emt 0:03:00]} h6 {[%emt 0:00:46]} 11. d5 {[%emt 0:08:53]} exd5 {[%emt 0:01:06]} 12. exd5 {[%emt 0:00:14]} Ne7 {[%emt 0:00:41]} 13. Nc3 {[%emt 0:10:42]} O-O {[%emt 0:04:35]} 14. b3 {[%emt 0:01:38]} a6 {[%emt 0:05:36]} 15. Bb2 $15 {[%emt 0:10:29]} b5 {[%emt 0:03:32]} 16. Qd4 {[%emt 0:05:06]} Nf5 {[%emt 0:00:48]} 17. Qd2 {[%emt 0:01:59]} Bb7 {[%emt 0:07:26]} 18. Rad1 {[%emt 0:04:06]} Re8 {[%emt 0:03:01]} 19. h3 {[%emt 0:04:17]} b4 {[%emt 0:07:10]} 20. Ne2 {[%emt 0:12:53]} Bxd5 {[%emt 0:11:34]} 21. Qxd5 {[%emt 0:00:26]} Rxe2 {[%emt 0:00:02]} 22. Ne5 {[%emt 0:01:04]} Qf8 {[%emt 0:06:09]} 23. Nxf7 {[%emt 0:03:52]} Qxf7 {[%emt 0:04:52]} 24. Qxa8+ {[%emt 0:00:03]} Kh7 {[%emt 0:00:01]} 25. Qf3 {[%emt 0:05:44]} Rxb2 {[%emt 0:02:06]} 26. g4 {[%emt 0:00:13]} Rxa2 {[%emt 0:01:49]} 27. Rd5 {[%emt 0:01:18]} Rb2 {[%emt 0:04:08]} 28. Rfd1 {[%emt 0:02:54]} Qe6 {[%emt 0:01:06]} 29. gxf5 {[%emt 0:00:23]} Qf6 {[%emt 0:00:33]} 30. R1d3 {[%emt 0:01:07]} Rc2 {[%emt 0:02:27]} 31. Qg4 {[%emt 0:01:39]} Bc5 {[%emt 0:01:52]} 32. Qg6+ {[%emt 0:01:07]} Qxg6+ {[%emt 0:00:02]} 33. fxg6+ {[%emt 0:00:01]} Kxg6 {[%emt 0:00:01]} 34. Rd2 {[%emt 0:00:26]} Rc3 {[%emt 0:01:06]} 35. Kg2 {[%emt 0:00:26]} Bd6 {[%emt 0:00:34]} 36. R2d3 {[%emt 0:00:33]} Kf6 {[%emt 0:01:25]} 37. Rf3+ {[%emt 0:00:50]} Ke6 {[%emt 0:00:33]} 38. Ra5 {[%emt 0:00:21]} Rc6 {[%emt 0:01:04]} 39. Rd3 {[%emt 0:00:59]} Rb6 {[%emt 0:00:41]} 40. Kf3 {[%emt 0:00:00]} Kd7 {[%emt 0:00:00]} 41. Ke4 {[%emt 0:05:58]} Kc6 {[%emt 0:02:24]} 42. f4 {[%emt 0:01:02]} Kb7 {[%emt 0:00:34]} 43. h4 {[%emt 0:07:38]} Be7 {[%emt 0:04:32]} 44. Rd7 {[%emt 0:02:25]} Bf6 {[%emt 0:02:01]} 45. Rc5 {[%emt 0:00:43]} Rc6 {[%emt 0:04:05]} 46. Kd5 {[%emt 0:01:30]} Rd6+ {[%emt 0:03:34]} 47. Rxd6 {[%emt 0:00:07]} cxd6 {[%emt 0:00:01]} 48. Kxd6 {[%emt 0:01:32]} Kb6 {[%emt 0:00:01]} 49. Rc6+ {[%emt 0:00:52]} Kb5 {[%emt 0:00:14]} 50. h5 {[%emt 0:01:14]} a5 {[%emt 0:00:31]} 51. Rc8 {[%emt 0:00:20]} Bd4 {[%emt 0:01:59]} 52. Kd5 {[%emt 0:00:39]} Be3 {[%emt 0:00:30]} 53. f5 {[%emt 0:00:31]} Bg5 {[%emt 0:01:32]} 54. Rb8+ {[%emt 0:00:20]} Ka6 {[%emt 0:00:01]} 55. Kc6 {[%emt 0:00:20]} Be3 {[%emt 0:00:11]} 56. Kd5 {[%emt 0:01:21]} Bd2 {[%emt 0:00:20]} 57. Kc4 {[%emt 0:00:26]} Bf4 {[%emt 0:00:26]} 58. Re8 {[%emt 0:00:22]} Bg5 {[%emt 0:00:35]} 59. Re6+ {[%emt 0:00:22]} Kb7 {[%emt 0:00:03]} 60. Kb5 {[%emt 0:00:10]} Bd8 {[%emt 0:00:56]} 61. Rg6 {[%emt 0:00:55]} Bf6 {[%emt 0:00:06]} 62. Rxf6 {[%emt 0:01:06]} gxf6 {[%emt 0:00:02]} 63. Kxa5 {[%emt 0:00:08]} Kc6 {[%emt 0:00:05]} 64. Kxb4 {[%emt 0:00:06]} Kd5 {[%emt 0:00:18]} 65. Ka5 {[%emt 0:00:26]} Ke5 {[%emt 0:00:04]} 66. b4 {[%emt 0:00:22]} Kxf5 {[%emt 0:00:02]} 67. b5 {[%emt 0:00:19]} Ke6 {[%emt 0:00:10]} 68. b6 {[%emt 0:00:36]} Kd7 {[%emt 0:00:06]} 69. Ka6 {[%emt 0:00:04]} Kc8 {[%emt 0:00:05]} 70. Ka7 {[%emt 0:00:05]} 1-0

[Event "WYCC 2018 O18"]
[Site "Halkidiki"]
[Date "2018.10.29"]
[Round "10"]
[White "Bratkovic, Jakob"]
[Black "Brewer, Callum D"]
[Result "0-1"]
[ECO "B30"]
[WhiteElo "2242"]
[BlackElo "2056"]
[Annotator "NA"]
[PlyCount "56"]
[EventDate "2018.10.20"]
[EventType "swiss"]
[EventCountry "GRE"]
[SourceTitle "playchess.com"]
[Source "ChessBase"]
[SourceQuality "1"]
[TimeControl "40/5400+30:1800+30"]

1. e4 {[%emt 0:02:36]} c5 {[%emt 0:00:00]} 2. Nf3 {[%emt 0:00:06]} Nc6 {[%emt 0:00:00]} 3. c3 {[%emt 0:00:15]} Nf6 {[%emt 0:01:11]} 4. e5 {[%emt 0:00:16]} Nd5 {[%emt 0:00:02]} 5. d4 {[%emt 0:00:16]} cxd4 {[%emt 0:00:47]} 6. cxd4 {[%emt 0:00:06]} d6 {[%emt 0:00:21]} 7. Bc4 {[%emt 0:01:40]} Nb6 {[%emt 0:09:56]} 8. Bd3 {[%emt 0:12:42]} Bg4 {[%emt 0:16:05] LiveBook: 5 Games} 9. Be3 {[%emt 0:03:15]} dxe5 {[%emt 0:08:48]} 10. dxe5 {[%emt 0:00:40]} Bxf3 {[%emt 0:03:16]} 11. gxf3 {[%emt 0:00:17]} Nxe5 {[%emt 0:04:19]} 12. Bb5+ {[%emt 0:06:37]} Nc6 {[%emt 0:00:29]} 13. Nc3 {[%emt 0:01:04]} e6 {[%emt 0:06:28]} 14. Qb3 {[%emt 0:11:54]} Be7 $17 {[%emt 0:07:24]} 15. Rd1 {[%emt 0:18:54]} Qc7 {[%emt 0:00:22]} 16. Be2 {[%emt 0:00:23]} Bb4 {[%emt 0:09:36]} 17. O-O {[%emt 0:02:47]} Bxc3 {[%emt 0:02:02]} 18. bxc3 {[%emt 0:01:23]} O-O {[%emt 0:03:39]} 19. Rb1 {[%emt 0:00:59]} Nd5 {[%emt 0:02:34]} 20. Qxb7 {[%emt 0:02:17]} Qxb7 {[%emt 0:02:17]} 21. Rxb7 {[%emt 0:00:05]} Nxc3 {[%emt 0:00:15]} 22. Bb5 {[%emt 0:02:03]} Nd8 {[%emt 0:01:24]} 23. Rc1 {[%emt 0:02:40]} Nxa2 {[%emt 0:00:36]} 24. Rxa7 {[%emt 0:00:48]} Rxa7 {[%emt 0:00:40]} 25. Ra1 {[%emt 0:00:03]} Rb7 {[%emt 0:01:27]} 26. Ba6 {[%emt 0:00:24]} Rb2 {[%emt 0:04:44]} 27. Bc4 {[%emt 0:02:07]} Nc3 {[%emt 0:00:48]} 28. Bc5 {[%emt 0:00:03]} Rb1+ {[%emt 0:00:46]} 0-1

[Event "WYCC 2018 O18"]
[Site "Halkidiki"]
[Date "2018.10.29"]
[Round "10"]
[White "Dallemagne, Maximilien"]
[Black "Galiana Fernandez, Adrian"]
[Result "0-1"]
[ECO "A48"]
[WhiteElo "2094"]
[BlackElo "2261"]
[Annotator "NA"]
[PlyCount "72"]
[EventDate "2018.10.20"]
[EventType "swiss"]
[EventCountry "GRE"]
[SourceTitle "playchess.com"]
[Source "ChessBase"]
[SourceQuality "1"]
[TimeControl "40/5400+30:1800+30"]

1. d4 {[%emt 0:00:00]} Nf6 {[%emt 0:00:00]} 2. Nf3 {[%emt 0:00:00]} g6 {[%emt 0:00:00]} 3. Bg5 {[%emt 0:00:36]} Bg7 {[%emt 0:00:00]} 4. Nbd2 {[%emt 0:00:19]} O-O {[%emt 0:00:20]} 5. e3 {[%emt 0:07:15]} d6 {[%emt 0:05:32]} 6. Bd3 {[%emt 0:02:20]} Qe8 {[%emt 0:03:39]} 7. h3 {[%emt 0:08:40]} e5 {[%emt 0:00:58]} 8. c3 {[%emt 0:04:34]} h6 {[%emt 0:06:53]} 9. Bxf6 {[%emt 0:03:08]} Bxf6 {[%emt 0:07:23]} 10. Qc2 {[%emt 0:02:14]} exd4 {[%emt 0:15:03]} 11. Nxd4 {[%emt 0:05:43]} d5 {[%emt 0:02:59]} 12. N4b3 {[%emt 0:12:44]} Nd7 {[%emt 0:04:20]} 13. O-O $11 {[%emt 0:05:29]} Ne5 {[%emt 0:08:50]} 14. Be2 {[%emt 0:01:56]} Bg7 {[%emt 0:03:04]} 15. e4 {[%emt 0:03:43]} dxe4 {[%emt 0:01:15]} 16. Nxe4 {[%emt 0:00:22]} Qe7 {[%emt 0:00:45]} 17. Rfe1 {[%emt 0:02:22]} Qh4 {[%emt 0:05:59]} 18. Ng3 {[%emt 0:02:47]} Bd7 {[%emt 0:01:55]} 19. Nd4 {[%emt 0:01:11]} Rad8 {[%emt 0:05:04]} 20. Nf3 {[%emt 0:00:46]} Nxf3+ {[%emt 0:04:02]} 21. Bxf3 {[%emt 0:00:53]} Bc8 {[%emt 0:00:44]} 22. Re2 {[%emt 0:10:02]} Rfe8 {[%emt 0:01:02]} 23. Rae1 {[%emt 0:00:15]} Rxe2 {[%emt 0:00:12]} 24. Rxe2 {[%emt 0:00:16]} h5 {[%emt 0:00:35]} 25. Qb3 {[%emt 0:04:27]} c6 {[%emt 0:00:21]} 26. Qa3 {[%emt 0:01:52]} a6 {[%emt 0:01:02]} 27. Qa5 {[%emt 0:04:25]} Rd1+ {[%emt 0:01:26]} 28. Kh2 {[%emt 0:00:39]} Qd8 {[%emt 0:00:19]} 29. Qc5 {[%emt 0:02:23]} h4 {[%emt 0:08:51]} 30. Ne4 {[%emt 0:01:53]} Rd5 {[%emt 0:00:56]} 31. Qe3 {[%emt 0:05:18]} Be5+ {[%emt 0:02:27]} 32. Kg1 {[%emt 0:01:45]} Rd3 {[%emt 0:06:56]} 33. Rd2 {[%emt 0:00:06]} Rxd2 {[%emt 0:00:49]} 34. Nxd2 {[%emt 0:00:37]} Bc7 {[%emt 0:00:16]} 35. Qh6 {[%emt 0:02:23]} Bf5 {[%emt 0:00:51]} 36. Nc4 {[%emt 0:01:12]} Qd3 {[%emt 0:00:30]} 0-1

[Event "WYCC 2018 O18"]
[Site "Halkidiki"]
[Date "2018.10.29"]
[Round "10"]
[White "Olimjonov, Sarvarbek"]
[Black "Szabo, Marton Mihaly"]
[Result "0-1"]
[ECO "B28"]
[WhiteElo "2074"]
[BlackElo "2307"]
[Annotator "NA"]
[PlyCount "108"]
[EventDate "2018.10.20"]
[EventType "swiss"]
[EventCountry "GRE"]
[SourceTitle "playchess.com"]
[Source "ChessBase"]
[SourceQuality "1"]
[TimeControl "40/5400+30:1800+30"]

1. e4 {[%emt 0:00:35]} c5 {[%emt 0:00:00]} 2. Nf3 {[%emt 0:00:12]} a6 {[%emt 0:00:18]} 3. d4 {[%emt 0:00:38]} cxd4 {[%emt 0:00:10]} 4. Nxd4 {[%emt 0:00:11]} Nf6 {[%emt 0:00:16]} 5. Bd3 {[%emt 0:02:15]} e5 {[%emt 0:00:25]} 6. Nb3 {[%emt 0:04:19]} Be7 {[%emt 0:01:47]} 7. O-O {[%emt 0:02:14]} O-O {[%emt 0:00:21]} 8. c4 {[%emt 0:01:08]} d6 {[%emt 0:00:11]} 9. Nc3 {[%emt 0:01:15] B28: Sicilian: 2 Nf3 a6 (O'Kelly Variation)} Be6 {[%emt 0:00:35]} 10. Qe2 {[%emt 0:02:50]} Nc6 {[%emt 0:01:30]} (10... b5 11. Nd5 bxc4 12. Nxe7+ Qxe7 13. Bxc4 Bxc4 14. Qxc4 Qb7 15. Re1 Rc8 16. Qe2 h6 {0-1 (47) Richterova,N (2146)-Biriukov,N (2398) Pardubice 2018}) 11. Nd5 {[%emt 0:04:19]} Rc8 $146 {[%emt 0:03:59]} ({Predecessor:} 11... Nd7 12. f4 Bxd5 13. cxd5 Nb4 {½-½ (42) Toth,T (1992)-Adorjan,B Hungary 2004}) 12. Be3 {[%emt 0:01:09]} Nd7 {[%emt 0:08:14]} 13. Rac1 {[%emt 0:05:31]} Bg5 {[%emt 0:03:52]} 14. f4 {[%emt 0:09:14]} exf4 {[%emt 0:01:14]} 15. Nxf4 {[%emt 0:01:05]} Bxf4 {[%emt 0:01:52]} 16. Rxf4 {[%emt 0:01:04]} Nde5 {[%emt 0:02:56]} 17. Nd4 {[%emt 0:06:38]} Nxd3 {[%emt 0:01:37]} 18. Qxd3 {[%emt 0:03:51]} Ne5 {[%emt 0:00:58]} 19. Qb3 {[%emt 0:01:01]} Bxc4 {[%emt 0:01:23]} ({Don't play} 19... Rxc4 $6 20. Nxe6 Rxc1+ 21. Bxc1 $11) 20. Qa3 {[%emt 0:07:32]} Be6 {[%emt 0:08:43]} 21. Nxe6 {[%emt 0:11:27]} Rxc1+ {[%emt 0:00:52]} 22. Bxc1 {[%emt 0:00:02]} fxe6 {[%emt 0:00:23]} 23. Qb3 {[%emt 0:03:14]} Qd7 {[%emt 0:04:34]} 24. Rxf8+ {[%emt 0:01:46]} Kxf8 {[%emt 0:00:08]} 25. Bf4 {[%emt 0:00:29]} Nf7 {[%emt 0:00:40]} 26. a4 {[%emt 0:01:23]} d5 {[%emt 0:01:26]} 27. exd5 {[%emt 0:04:16]} exd5 {[%emt 0:01:56]} 28. Be3 {[%emt 0:02:23]} Kg8 {[%emt 0:02:18]} 29. Bd4 {[%emt 0:03:17]} Nd8 {[%emt 0:01:00]} 30. Kf2 {[%emt 0:00:47]} Qf5+ {[%emt 0:06:19]} 31. Qf3 {[%emt 0:03:02]} Qxf3+ {[%emt 0:00:47]} 32. Kxf3 {[%emt 0:00:12]} Ne6 {[%emt 0:00:19]} 33. Ke3 {[%emt 0:00:05]} Kf7 {[%emt 0:00:42]} 34. Bb6 {[%emt 0:00:39]} Ke7 {[%emt 0:01:03]} 35. b4 {[%emt 0:00:59]} Kd6 {[%emt 0:00:54]} 36. Ba7 {[%emt 0:01:21]} Kc7 {[%emt 0:00:33]} 37. g3 {[%emt 0:02:05]} b6 {[%emt 0:00:49]} 38. a5 {[%emt 0:00:04]} bxa5 {[%emt 0:00:04]} 39. bxa5 {[%emt 0:00:05]} Kc6 {[%emt 0:00:21]} 40. Bb6 $19 {[%emt 0:00:00]} Kb5 {[%emt 0:00:00]} 41. Kd3 {[%emt 0:01:31]} Kb4 {[%emt 0:02:22]} 42. h4 {[%emt 0:00:39]} h5 {[%emt 0:00:15]} 43. Kc2 {[%emt 0:04:34]} Kc4 {[%emt 0:00:18]} 44. Kd2 {[%emt 0:01:11]} d4 {[%emt 0:00:47]} 45. Kc2 {[%emt 0:01:16]} Nc5 {[%emt 0:01:15]} 46. Bc7 {[%emt 0:00:31]} d3+ {[%emt 0:00:22]} 47. Kd1 {[%emt 0:01:19]} Ne4 {[%emt 0:00:15]} 48. Be5 {[%emt 0:00:27]} g6 {[%emt 0:00:39]} 49. Kc1 {[%emt 0:01:01]} Kd5 {[%emt 0:01:25]} 50. Bf4 {[%emt 0:00:16]} Ke6 {[%emt 0:00:35]} 51. Kd1 {[%emt 0:01:05]} Kf5 {[%emt 0:00:07]} 52. Ke1 {[%emt 0:00:22]} Kg4 {[%emt 0:00:05]} 53. Be5 {[%emt 0:00:28]} Kf3 {[%emt 0:00:33]} 54. Bc7 {[%emt 0:00:14]} d2+ {[%emt 0:00:27]} 0-1